Cogmind - Beta 14 @@@ ROGUE MODE // 2024.11.04 @ 04:44:05 Player: Mitsuru Result: Destroyed by S-27 Virus with Autogun Performance ------------- Evolutions (6) 3000 Regions Visited (14) 2800 Robots Destroyed (121) 605 Value Destroyed (4796) 4796 Prototype IDs (7) 140 Alien Tech Used (0) 0 Bonus (1677) 1677 TOTAL SCORE: 13018 Bonus ------- High Alert Combat Kills 51 Follower Combat Kills 270 Met Warlord at Base 500 MAIN.C Attacked Warlord 500 Warlord Defense Kills 362 Friendly Fire -6 Cogmind --------- Core Integrity 0/1150 Matter 300/300 Energy 99/100 System Corruption 10% Temperature Cool (0) Movement Core (50) Location -4/Upper Caves Parts ------- > --- POWER (1) -------- (None) > --- PROPULSION (4) --- (None) > --- UTILITY (9) ------ Advanced Signal Interpreter Point Defense Array > --- WEAPON (5) ------- (None) > --- INVENTORY (5) ---- Advanced Heat Sink Matter Filter Improved Weapon Cycler Hacking Suite High-powered Tractor Beam Peak State ------------ > --- POWER ------------ Light Angular Momentum Engine > --- PROPULSION ------- Improved Treads Improved Medium Treads Armored Medium Treads Centrium Wheel > --- UTILITY ---------- Advanced Cooling System Large Storage Unit Structural Scanner Multitargeting Array Improved Target Analyzer Recoil Nullifier Matter Filter Improved Weapon Cycler Improved Hacking Suite > --- WEAPON ----------- Gauss Rifle KE Penetrator Enhanced Gauss Cannon Hardcell Cannon Heavy Gauss Cannon > --- INVENTORY -------- Reinforced Fission Core Medium Treads Armored Wheel Advanced Heat Sink Compact Matter Pod Compact Matter Pod Centrium Heavy Armor Plating Hacking Suite High-powered Tractor Beam Long-range Tractor Beam Rocket Launcher Rocket Launcher Katana [Rating: 103] Favorites ----------- Power Light Angular Momentum Engine Engine Light Angular Momentum Engine Power Core Reinforced Fission Core Reactor Antimatter Reactor Propulsion Light Treads Treads Light Treads Leg Carbon-fiber Leg Wheel Armored Wheel Utility Large Storage Unit Device Structural Scanner Storage Large Storage Unit Processor Improved Target Analyzer Hackware Improved Hacking Suite Protection Light Armor Plating Weapon Gauss Rifle Energy Gun Small Laser Ballistic Gun Gauss Rifle Ballistic Cannon Enhanced Gauss Cannon Slashing Weapon Katana Build | -11 -10 -10 -9 -9 -8 -7 -6 -5 -5 -5 -5 -4 -4 -4 ------- Run | Yrd Mat Min Mat Min Mat Fac Fac Fac Upp Upp War Pro Fac Upp Slots Evolved 12 | . . . 2 . 2 2 2 2 . . . . 2 . Power . | . . . . . . . . . . . . . . . Propulsion 2 | . . . . . 1 . 1 . . . . . . . Utility 7 | . . . 1 . . 2 1 1 . . . . 2 . Weapon 3 | . . . 1 . 1 . . 1 . . . . . . Parts Attached 111 | 6 1 2 10 5 8 8 6 30 2 8 . 8 16 1 Power 9 | 1 . . . 1 1 . . 3 . . . 2 1 . Engine 6 | 1 . . . 1 1 . . 2 . . . 1 . . Core 2 | . . . . . . . . . . . . 1 1 . Reactor 1 | . . . . . . . . 1 . . . . . . Propulsion 33 | 2 . . 4 3 2 3 2 7 . 3 . 2 5 . Treads 25 | 2 . . 3 3 2 1 2 5 . 3 . 1 3 . Leg 1 | . . . . . . . . 1 . . . . . . Wheel 7 | . . . 1 . . 2 . 1 . . . 1 2 . Hover . | . . . . . . . . . . . . . . . Flight . | . . . . . . . . . . . . . . . Utility 33 | 1 1 . 3 . . 4 3 10 1 1 . 2 6 1 Device 18 | . 1 . . . . 2 1 6 1 1 . 2 3 1 Storage 3 | 1 . . 1 . . . 1 . . . . . . . Processor 7 | . . . . . . 2 1 3 . . . . 1 . Hackware 1 | . . . . . . . . . . . . . 1 . Protection 4 | . . . 2 . . . . 1 . . . . 1 . Artifact . | . . . . . . . . . . . . . . . Weapon 36 | 2 . 2 3 1 5 1 1 10 1 4 . 2 4 . Energy Gun 4 | 2 . . . . . . . . . . . . 2 . Energy Cannon . | . . . . . . . . . . . . . . . Ballistic Gun 26 | . . 2 3 1 5 1 1 10 1 2 . . . . Ballistic Cannon 5 | . . . . . . . . . . 2 . 2 1 . Launcher . | . . . . . . . . . . . . . . . Special Weapon . | . . . . . . . . . . . . . . . Impact Weapon . | . . . . . . . . . . . . . . . Slashing Weapon 1 | . . . . . . . . . . . . . 1 . Piercing Weapon . | . . . . . . . . . . . . . . . Special Melee Weapon . | . . . . . . . . . . . . . . . Unidentified Prototypes 7 | . . . . . 1 . . 4 . 1 . . 1 . Corrupted Parts 2 | . . . . . . . . 2 . . . . . . System Corruption 7 | . . . . . . . . 7 . . . . . . Parts Lost 48 | . . . 1 1 2 1 . 10 3 6 . . 24 . Power 3 | . . . . . . . . 1 . . . . 2 . Propulsion 10 | . . . 1 . 1 . . 2 1 1 . . 4 . Utility 15 | . . . . . . 1 . 2 1 1 . . 10 . Weapon 20 | . . . . 1 1 . . 5 1 4 . . 8 . Highest Loss Streak 13 | . . . 1 1 2 1 . 4 2 3 . . 13 . To Critical Strikes . | . . . . . . . . . . . . . . . Average Slot Usage (%) 94 | . 94 100 98 99 98 95 90 91 97 90 94 99 85 8 Engine 7 | . 14 14 11 11 9 7 6 3 5 5 5 4 4 . Treads 17 | . 28 28 20 22 25 11 10 14 15 13 17 17 12 . Wheel 3 | . . . . . . 6 6 3 5 5 5 5 4 . Device 18 | . 8 14 11 11 9 15 20 17 22 23 29 29 27 3 Storage 7 | . 14 14 11 11 9 7 6 5 5 5 5 5 4 . Processor 6 | . . . . . . 13 13 12 11 7 5 5 6 5 Protection 2 | . . . 9 11 9 1 . . . . . . . . Energy Gun 1 | . 28 14 . . . . . . . . . . . . Ballistic Gun 23 | . . 13 33 32 36 30 26 28 28 20 11 11 6 . Ballistic Cannon 3 | . . . . . . . . . . 4 11 16 12 . Peak Build Rating 103 | 6 7 8 14 14 25 42 50 85 72 75 75 90 103 14 Average Rating 47 | 4 6 7 12 13 20 36 45 66 70 69 75 84 89 11 On Entrance 36 | . 6 7 8 14 13 25 42 50 72 66 75 75 90 7 Naked Turns . | . . . . . . . . . . . . . . . Heaviest Build 84 | 10 11 11 34 34 46 47 45 60 53 61 61 84 79 3 Greatest Support 97 | 40 40 40 43 43 63 60 30 97 57 12 12 85 85 3 Greatest Overweight (x) 15 | 3 . . 2 . 1 4 1 4 4 5 5 6 15 . Average Overweight (x) 1 | . . . . . . 2 1 1 3 3 5 . . . Largest Inventory Capacity 15 | 8 8 8 15 15 15 15 15 15 15 15 15 15 15 5 Average Capacity 13 | 7 8 8 11 15 15 15 15 15 15 15 15 15 14 5 Most Carried 15 | 2 2 7 14 15 15 15 15 15 15 15 13 15 15 5 Average Carried 12 | 1 2 4 9 14 14 14 14 13 14 13 13 14 13 5 Final Capacity 15 | 8 8 8 15 15 15 15 15 15 15 15 15 15 5 5 Final Carried 15 | 2 2 7 14 15 15 15 15 15 14 13 13 15 5 5 Class Distribution -------------------- 40% | Scavenger-Gunner 22% | Scavenger-Skirmisher 14% | Scavenger-Tank 11% | Mutant 9% | Tank Dominant Class ---------------- Mutant | -10/Materials Mutant | -10/Mines Tank | -9/Materials Scavenger-Tank | -9/Mines Scavenger-Tank | -8/Materials Scavenger-Skirmisher | -7/Factory Scavenger-Skirmisher | -6/Factory Scavenger-Skirmisher | -5/Factory Scavenger-Gunner | -5/Upper Caves Scavenger-Gunner | -5/Upper Caves Scavenger-Gunner | -5/Warlord Scavenger-Gunner | -4/Proximity Caves Scavenger-Gunner | -4/Factory Mutant | -4/Upper Caves Resources | -11 -10 -10 -9 -9 -8 -7 -6 -5 -5 -5 -5 -4 -4 -4 ----------- Run | Yrd Mat Min Mat Min Mat Fac Fac Fac Upp Upp War Pro Fac Upp Matter Collected 5371 | 220 21 56 296 208 127 229 262 1321 340 373 105 823 980 10 Remotely . | . . . . . . . . . . . . . . . Salvage Created 5225 | . 21 69 518 302 143 174 8 1664 494 300 125 363 1044 . Parts 284 | . 4 11 35 26 9 10 . 79 33 9 3 13 52 . Haulers Intercepted 2 | . . . 1 . . 1 . . . . . . . . Recyclers Shooed 8 | . . . 1 . . . . 5 . . . . 2 . Parts Field Recycled . | . . . . . . . . . . . . . . . Retrieved Matter . | . . . . . . . . . . . . . . . Parts Self-Destructed 56 | . . . . . . . . . 32 13 . 11 . . Prevented 2 | . . . . . . . . . . . . 2 . . Kills | -11 -10 -10 -9 -9 -8 -7 -6 -5 -5 -5 -5 -4 -4 -4 ------- Run | Yrd Mat Min Mat Min Mat Fac Fac Fac Upp Upp War Pro Fac Upp Combat Hostiles Destroyed 101 | . . 4 11 10 3 3 . 17 13 5 4 12 19 . Guns 81 | . . 4 10 10 3 3 . 17 13 5 2 9 5 . Cannons 19 | . . . . . . . . . . . 2 3 14 . AOE 1 | . . . 1 . . . . . . . . . . . Classes Destroyed 14 | . 1 1 4 1 1 1 . 3 . . 1 1 . . Worker 3 | . . . . . . . . 2 . . . . 1 . Builder 2 | . . . . . . . . 1 . . . . 1 . Hauler 2 | . . . 1 . . 1 . . . . . . . . Recycler 7 | . . . . . . . . 5 . . . . 2 . Watcher 6 | . 1 . 3 . . . . 1 . . . . 1 . Swarmer 34 | . . 4 3 5 . . . 2 8 . . 5 7 . Saboteur 1 | . . . . . . . . . . . 1 . . . Grunt 38 | . . . 3 4 2 1 . 8 2 3 2 4 9 . Brawler 3 | . . . . 1 . . . . . 1 . . 1 . Duelist 3 | . . . 1 . . . . . 1 . . 1 . . Sentry 8 | . . . 4 . . . . 1 . 1 . 1 1 . Hunter 5 | . . . . . 1 . . 1 2 . 1 . . . Programmer 8 | . . . . . . 2 . 5 . . . . 1 . Behemoth 1 | . . . . . . . . . . . . 1 . . Best Kill Streak 7 | . 1 3 5 2 2 1 . 5 7 2 3 5 6 . Combat Bots Only 7 | . . 3 5 2 2 1 . 4 7 2 3 5 5 . Max Kills in Single Turn 3 | . 1 1 1 2 1 1 . 2 3 1 1 1 2 . Gunslinging 1 | . . . . 1 . . . . 1 . . . . . Exploded 1 | . . . 1 . . . . . . . . . . . Melee . | . . . . . . . . . . . . . . . Uniques/NPCs Destroyed . | . . . . . . . . . . . . . . . Combat | -11 -10 -10 -9 -9 -8 -7 -6 -5 -5 -5 -5 -4 -4 -4 -------- Run | Yrd Mat Min Mat Min Mat Fac Fac Fac Upp Upp War Pro Fac Upp Hostile Shots Fired 725 | . . 14 37 46 12 7 22 174 44 54 10 65 237 3 Missed 215 | . . 4 15 11 5 3 5 53 10 22 7 16 63 1 Damage Taken 9995 | . . 81 481 455 110 202 131 2574 532 471 57 601 4267 33 Core 1814 | . . 9 60 76 . 42 . 266 18 75 . 112 1123 33 Absorbed by Shields 608 | . . . . . . . . . . . 8 394 206 . Regen/Repaired (Parts) 198 | . . . . . . . . . . . 198 . . . Core Remaining (%) 86 | 100 . 96 . 66 100 94 100 . . . . 52 . . Volleys Fired 257 | . 2 10 35 22 6 9 12 54 15 13 6 28 45 . Largest 5 | . 2 2 3 3 4 4 4 5 5 5 4 5 5 . Hottest 244 | . 80 80 66 66 97 101 101 145 135 158 158 223 244 . Shots Fired 992 | . 4 20 105 67 24 36 48 256 71 54 24 131 152 . Gun 792 | . 4 20 105 67 24 36 48 256 71 44 12 56 49 . Cannon 200 | . . . . . . . . . . 10 12 75 103 . Launcher . | . . . . . . . . . . . . . . . Special . | . . . . . . . . . . . . . . . Kinetic 971 | . . 7 105 67 24 36 48 256 71 54 24 131 148 . Thermal 18 | . 4 13 . . . . . . . . . . 1 . Explosive . | . . . . . . . . . . . . . . . Electromagnetic 3 | . . . . . . . . . . . . . 3 . Robot Hit Streak 44 | . 2 4 12 7 5 6 4 8 23 44 10 29 18 . Robot Miss Streak 9 | . 1 4 3 5 3 4 3 9 2 2 2 1 3 . Penetration Max 1 | . . . . . . . . 1 1 . . 1 1 . Secondary Targets 14 | . . . 3 3 . . . 3 5 . . . . . Max Gunslinging Chain 1 | . . . 1 1 . . . 1 1 . . . . . Shots Hit Robots 628 | . 2 9 73 36 15 16 30 149 51 38 13 91 105 . Core Hits 265 | . 2 5 28 15 9 7 6 76 24 14 6 26 47 . Critical Kills 11 | . . . 1 . . . . 5 1 1 1 1 1 . Critical Parts Destroyed 15 | . . . . . . . . 7 2 2 . 1 3 . Critical Strikes 44 | . . . 1 . . . . 12 3 5 1 8 14 . Destroy 27 | . . . 1 . . . . 12 3 3 1 3 4 . Blast 17 | . . . . . . . . . . 2 . 5 10 . Melee Attacks 7 | . . . . . . . . . . . . . 7 . Impact . | . . . . . . . . . . . . . . . Slashing 7 | . . . . . . . . . . . . . 7 . Piercing . | . . . . . . . . . . . . . . . Sneak Attacks . | . . . . . . . . . . . . . . . Combat Hostiles . | . . . . . . . . . . . . . . . Follow-up Attacks . | . . . . . . . . . . . . . . . Damage Inflicted 13142 | . 20 100 849 486 172 360 507 3103 760 739 351 2320 3375 . Guns 8876 | . 20 95 849 473 172 360 507 3092 760 577 138 885 948 . Cannons 4099 | . . . . . . . . . . 162 213 1435 2289 . Explosions 59 | . . . . . . . . . . . . . 59 . Melee 79 | . . . . . . . . . . . . . 79 . Ramming 29 | . . 5 . 13 . . . 11 . . . . . . Kinetic 12822 | . . 18 849 473 172 360 507 3092 760 739 351 2320 3181 . Thermal 113 | . 20 77 . . . . . . . . . . 16 . Explosive . | . . . . . . . . . . . . . . . Electromagnetic 99 | . . . . . . . . . . . . . 99 . Impact . | . . . . . . . . . . . . . . . Slashing 79 | . . . . . . . . . . . . . 79 . Piercing . | . . . . . . . . . . . . . . . Highest Corruption 10 | . . . 1 7 . . . 10 10 10 10 . 10 10 Average Corruption 5 | . . . 1 2 . . . 3 10 10 10 . 3 10 Corruption Purged . | . . . . . . . . . . . . . . . Corruption Blocked . | . . . . . . . . . . . . . . . Effects 114 | . . . 1 13 . . . 25 25 35 3 . 8 4 Message Errors 27 | . . . . 4 . . . 7 5 6 . . 3 2 Matter Fused 23 | . . . . 1 . . . 5 7 9 . . 1 . Heat Flow Errors 15 | . . . . 4 . . . 5 1 2 . . 1 2 Energy Discharges 14 | . . . . 2 . . . 2 4 4 1 . 1 . Parts Rejected 1 | . . . . . . . . 1 . . . . . . Parts Fused 1 | . . . 1 . . . . . . . . . . . Data Loss (minor) 14 | . . . . 1 . . . 2 1 9 1 . . . Data Loss (major) 6 | . . . . . . . . . 2 2 1 . 1 . Misfires 7 | . . . . 1 . . . 2 2 2 . . . . Alerts 1 | . . . . . . . . . . 1 . . . . Weapon Failures 5 | . . . . . . . . 1 3 . . . 1 . Overload Shots . | . . . . . . . . . . . . . . . Overflow Damage 118 | . . . . . . . . . . . 3 34 81 . Projectiles 118 | . . . . . . . . . . . 3 34 81 . Explosions . | . . . . . . . . . . . . . . . Melee . | . . . . . . . . . . . . . . . Knockbacks 27 | . . . . . . . . . . 3 2 4 18 . Impact . | . . . . . . . . . . . . . . . Kinetic 25 | . . . . . . . . . . 3 2 4 16 . Secondary 2 | . . . . . . . . . . . . . 2 . Self-Inflicted Damage . | . . . . . . . . . . . . . . . Shots . | . . . . . . . . . . . . . . . Rammed 7 | . . 2 . 2 . . . 3 . . . . . . Targets Rammed 7 | . . 2 . 2 . . . 3 . . . . . . Kicked . | . . . . . . . . . . . . . . . Crushed . | . . . . . . . . . . . . . . . Highest Temperature 401 | . 36 54 76 247 69 120 110 354 60 188 81 401 250 166 Average Temperature 75 | . 20 20 21 102 31 50 39 80 15 43 40 151 82 82 Received Heat Transfer 1551 | . . . 90 78 9 39 27 609 36 111 . 68 475 9 Effects 9 | . . . . 3 . . . 1 . . . 1 4 . Shutdowns 1 | . . . . . . . . . . . . 1 . . Energy Bleed 1 | . . . . . . . . . . . . . 1 . Interference 6 | . . . . 3 . . . . . . . . 3 . Short Circuit 1 | . . . . . . . . 1 . . . . . . Siege Activations . | . . . . . . . . . . . . . . . Robots Corrupted . | . . . . . . . . . . . . . . . Combat Hostiles . | . . . . . . . . . . . . . . . Parts Fried . | . . . . . . . . . . . . . . . Impact Corruptions . | . . . . . . . . . . . . . . . Robots Melted . | . . . . . . . . . . . . . . . Combat Hostiles . | . . . . . . . . . . . . . . . Parts Melted . | . . . . . . . . . . . . . . . Heat Transferred 262 | . 50 175 . . . . . . . . . . 37 . Parts Sabotaged . | . . . . . . . . . . . . . . . Parts Stolen . | . . . . . . . . . . . . . . . Parts Stripped . | . . . . . . . . . . . . . . . Power Chain Reactions . | . . . . . . . . . . . . . . . Alert | -11 -10 -10 -9 -9 -8 -7 -6 -5 -5 -5 -5 -4 -4 -4 ------- Run | Yrd Mat Min Mat Min Mat Fac Fac Fac Upp Upp War Pro Fac Upp Peak Influence 454 | . 22 83 315 238 104 65 214 416 . . . . 454 . Initial 68 | . . 8 . 68 29 3 14 21 . . . . . . Average 116 | . 17 31 129 106 33 19 30 206 . . . . 260 . Maximum Alert Level 2 | . . . 1 1 . . 1 2 . . . . 2 . Low Security (%) 75 | 100 100 100 86 82 100 100 95 42 . . . . 33 . Level 1 20 | . . . 13 17 . . 4 46 . . . . 48 . Level 2 4 | . . . . . . . . 10 . . . . 17 . Level 3 . | . . . . . . . . . . . . . . . Level 4 . | . . . . . . . . . . . . . . . Level 5 . | . . . . . . . . . . . . . . . High Security . | . . . . . . . . . . . . . . . Max Security . | . . . . . . . . . . . . . . . Squads Dispatched 26 | . 1 . 1 1 4 3 1 12 . . . . 3 . Investigation 8 | . . . . 1 3 1 1 2 . . . . . . Extermination 5 | . . . . . . 1 . 3 . . . . 1 . Reinforcement 13 | . 1 . 1 . 1 1 . 7 . . . . 2 . Assault . | . . . . . . . . . . . . . . . Garrison . | . . . . . . . . . . . . . . . Intercept . | . . . . . . . . . . . . . . . Searches Triggered . | . . . . . . . . . . . . . . . Construction Impeded 3 | . . . . . . . . 2 . . . . 1 . Haulers Reinforced 1 | . . . . . . . . 1 . . . . . . Active Scanning Responses 2 | . . . . . . . . 2 . . . . . . Cargo Convoy Interrupts . | . . . . . . . . . . . . . . . Stealth | -11 -10 -10 -9 -9 -8 -7 -6 -5 -5 -5 -5 -4 -4 -4 --------- Run | Yrd Mat Min Mat Min Mat Fac Fac Fac Upp Upp War Pro Fac Upp Distress Signals 5 | . . . 2 . 1 . . 1 . . . . 1 . Communications Jammed . | . . . . . . . . . . . . . . . Distress Signals . | . . . . . . . . . . . . . . . Times Spotted 199 | . 2 4 20 12 5 18 9 47 13 11 13 13 29 3 Peak Tracking Total 8 | . 2 3 5 4 3 3 3 5 8 4 8 6 6 3 Tactical Retreats 17 | . . 1 2 3 . . . . 1 4 2 1 3 . Traps | -11 -10 -10 -9 -9 -8 -7 -6 -5 -5 -5 -5 -4 -4 -4 ------- Run | Yrd Mat Min Mat Min Mat Fac Fac Fac Upp Upp War Pro Fac Upp Traps Triggered 4 | . . . 1 . 1 . . . . . . . 2 . Indirectly . | . . . . . . . . . . . . . . . Trap Hack Attempts . | . . . . . . . . . . . . . . . Triggered . | . . . . . . . . . . . . . . . Disarmed . | . . . . . . . . . . . . . . . Reprogrammed . | . . . . . . . . . . . . . . . Reused . | . . . . . . . . . . . . . . . Traps Extracted . | . . . . . . . . . . . . . . . Installed . | . . . . . . . . . . . . . . . Triggered 5 | . . . . . . . . . . 1 2 2 . . Most Traps Carried 1 | . . . . 1 1 1 . . . . . . . . Machines | -11 -10 -10 -9 -9 -8 -7 -6 -5 -5 -5 -5 -4 -4 -4 ---------- Run | Yrd Mat Min Mat Min Mat Fac Fac Fac Upp Upp War Pro Fac Upp Machines Disabled 15 | . . . 1 . . . 2 2 . . 1 . 9 . Max in Single Turn 5 | . . . . . . . 2 1 . . 1 . 5 . Garrison Access 1 | . . . . . . . 1 . . . . . . . Machines Repaired . | . . . . . . . . . . . . . . . Machines Dismantled . | . . . . . . . . . . . . . . . Machines Sabotaged . | . . . . . . . . . . . . . . . Overloaded Fab Kills . | . . . . . . . . . . . . . . . Hacking | -11 -10 -10 -9 -9 -8 -7 -6 -5 -5 -5 -5 -4 -4 -4 --------- Run | Yrd Mat Min Mat Min Mat Fac Fac Fac Upp Upp War Pro Fac Upp Machines Accessed 18 | . . 1 5 1 3 1 4 1 1 . . . 1 . Terminals 16 | . . 1 5 1 3 1 3 1 . . . . 1 . Fabricators . | . . . . . . . . . . . . . . . Repair Stations . | . . . . . . . . . . . . . . . Recycling Units . | . . . . . . . . . . . . . . . Scanalyzers . | . . . . . . . . . . . . . . . Garrison Access 1 | . . . . . . . 1 . . . . . . . Total Hacks 42 | . . 4 10 2 9 3 9 2 1 . . . 2 . Successful 8 | . . . 5 . 1 . 1 . 1 . . . . . Failed 34 | . . 4 5 2 8 3 8 2 . . . . 2 . Catastrophic 9 | . . 1 . 2 3 1 2 . . . . . . . Database Lockouts . | . . . . . . . . . . . . . . . Manual 39 | . . 4 10 2 9 3 7 2 . . . . 2 . Terminals 39 | . . 4 10 2 9 3 7 2 . . . . 2 . Fabricators . | . . . . . . . . . . . . . . . Repair Stations . | . . . . . . . . . . . . . . . Recycling Units . | . . . . . . . . . . . . . . . Scanalyzers . | . . . . . . . . . . . . . . . Garrison Access 2 | . . . . . . . 2 . . . . . . . Terminal Hacks 4 | . . . 2 . 1 . . . 1 . . . . . Open Door 1 | . . . . . . . . . 1 . . . . . Branch Access Points 2 | . . . 1 . 1 . . . . . . . . . Terminal Index 1 | . . . 1 . . . . . . . . . . . Fabricator Hacks . | . . . . . . . . . . . . . . . Repair Station Hacks . | . . . . . . . . . . . . . . . Recycling Unit Hacks . | . . . . . . . . . . . . . . . Scanalyzer . | . . . . . . . . . . . . . . . Garrison Access Hacks . | . . . . . . . . . . . . . . . Unauthorized Hacks 4 | . . . 3 . . . 1 . . . . . . . Terminals 3 | . . . 3 . . . . . . . . . . . Botnet 3 | . . . 3 . . . . . . . . . . . Fabricators . | . . . . . . . . . . . . . . . Repair Stations . | . . . . . . . . . . . . . . . Recycling Units . | . . . . . . . . . . . . . . . Scanalyzers . | . . . . . . . . . . . . . . . Garrison Access 1 | . . . . . . . 1 . . . . . . . Jam 1 | . . . . . . . 1 . . . . . . . Data Cores Recovered 1 | . . . 1 . . . . . . . . . . . Used . | . . . . . . . . . . . . . . . Hacking Detections 17 | . . 1 5 1 3 1 4 1 . . . . 1 . Full Trace Events 3 | . . . . 1 2 . . . . . . . . . Feedback Events 1 | . . . . 1 . . . . . . . . . . Corruption 1 | . . . . 1 . . . . . . . . . . Feedback Blocked . | . . . . . . . . . . . . . . . Robot Schematics Acquired . | . . . . . . . . . . . . . . . Robots Built . | . . . . . . . . . . . . . . . Authchips . | . . . . . . . . . . . . . . . Time . | . . . . . . . . . . . . . . . Total Robot Build Rating . | . . . . . . . . . . . . . . . Part Schematics Acquired . | . . . . . . . . . . . . . . . Parts Built . | . . . . . . . . . . . . . . . Authchips . | . . . . . . . . . . . . . . . Time . | . . . . . . . . . . . . . . . Total Part Build Rating . | . . . . . . . . . . . . . . . Parts Repaired . | . . . . . . . . . . . . . . . Time . | . . . . . . . . . . . . . . . Parts Recycled . | . . . . . . . . . . . . . . . Recycled Matter . | . . . . . . . . . . . . . . . Retrieved Matter . | . . . . . . . . . . . . . . . Retrieved Components . | . . . . . . . . . . . . . . . Parts Scanalyzed . | . . . . . . . . . . . . . . . Part Schematics Acquired . | . . . . . . . . . . . . . . . Parts Damaged . | . . . . . . . . . . . . . . . Bothacking | -11 -10 -10 -9 -9 -8 -7 -6 -5 -5 -5 -5 -4 -4 -4 ------------ Run | Yrd Mat Min Mat Min Mat Fac Fac Fac Upp Upp War Pro Fac Upp Used RIF Installer . | . . . . . . . . . . . . . . . Robots Hacked . | . . . . . . . . . . . . . . . Non-combat . | . . . . . . . . . . . . . . . Combat . | . . . . . . . . . . . . . . . Robot Hacks Applied . | . . . . . . . . . . . . . . . Relay Couplers Released . | . . . . . . . . . . . . . . . Fabnet Peak Effective % . | . . . . . . . . . . . . . . . Robots Rewired 5 | . . . . . . . . . . . 5 . . . Allies Hacked . | . . . . . . . . . . . . . . . Hacks Repelled . | . . . . . . . . . . . . . . . Allies | -11 -10 -10 -9 -9 -8 -7 -6 -5 -5 -5 -5 -4 -4 -4 -------- Run | Yrd Mat Min Mat Min Mat Fac Fac Fac Upp Upp War Pro Fac Upp Total Allies 7 | . . 1 . . . . . . . . 5 . . 1 Largest Group 5 | . . 1 1 . . . . . . . 5 1 1 1 Highest-Rated Group 250 | . . 31 31 . . . . . . . 250 65 65 180 Highest-Rated Ally 180 | . . 31 31 . . . . . . . 65 65 65 180 Total Orders . | . . . . . . . . . . . . . . . Ally Attacks 54 | . . . 26 . . . . . . . 28 . . . Total Damage 1393 | . . . 576 . . . . . . . 817 . . . Kills 13 | . . . 6 . . . . . . . 7 . . . Allies Corrupted 1 | . . . . . . . . . . . . . 1 . Allies Melted . | . . . . . . . . . . . . . . . Intel | -11 -10 -10 -9 -9 -8 -7 -6 -5 -5 -5 -5 -4 -4 -4 ------- Run | Yrd Mat Min Mat Min Mat Fac Fac Fac Upp Upp War Pro Fac Upp Robot Analysis Total . | . . . . . . . . . . . . . . . Derelict Logs Recovered 7 | . . 1 . 1 . . . . 1 1 . 2 . 1 Drone Launches . | . . . . . . . . . . . . . . . Drone Recoveries . | . . . . . . . . . . . . . . . Exploration | -11 -10 -10 -9 -9 -8 -7 -6 -5 -5 -5 -5 -4 -4 -4 ------------- Run | Yrd Mat Min Mat Min Mat Fac Fac Fac Upp Upp War Pro Fac Upp Turns Passed 10117 | 82 77 852 944 1045 613 515 756 1633 577 883 461 853 722 104 Spaces Moved 5584 | 49 42 491 524 584 336 327 412 683 346 550 228 469 339 204 Core 253 | 13 . . . . . . . . . . . . 36 204 Treads 2846 | 36 42 491 455 584 336 16 26 168 3 . . 412 277 . Legs . | . . . . . . . . . . . . . . . Wheels 2485 | . . . 69 . . 311 386 515 343 550 228 57 26 . Hover . | . . . . . . . . . . . . . . . Flight . | . . . . . . . . . . . . . . . Fastest Speed 50 | 50 160 160 95 160 160 115 115 115 150 135 165 160 50 50 Average Speed 147 | 148 160 160 152 160 170 127 122 141 150 149 165 161 154 50 Slowest Speed 800 | 200 160 160 160 160 240 160 240 250 165 165 165 180 800 50 Overloaded Moves . | . . . . . . . . . . . . . . . Propulsion Burnouts . | . . . . . . . . . . . . . . . Robots Hopped . | . . . . . . . . . . . . . . . Cave-ins Triggered . | . . . . . . . . . . . . . . . Exploration Rate (%) 39 | 4 13 79 53 102 25 11 15 15 59 70 34 66 8 37 Regions Visited 14 Branch Regions 7 Pre-discovered Areas 1 | . . . . . . . . . . . . 1 . . Known Exits Taken 4 | . . . 1 . . 1 1 . . . . . 1 . Unknown Exits Taken 10 | 1 1 1 . 1 1 . . 1 1 1 1 1 . . Scrap Searched 13 | . . 1 . 1 . . . . 1 4 . 3 . 3 Spaces Dug . | . . . . . . . . . . . . . . . Terrain Destroyed 99 | . . . . . . . . 8 . 8 5 36 42 . Melee . | . . . . . . . . . . . . . . . Projectile 98 | . . . . . . . . 7 . 8 5 36 42 . AOE . | . . . . . . . . . . . . . . . Terrain Rammed . | . . . . . . . . . . . . . . . Walls Destroyed . | . . . . . . . . . . . . . . . Machines Disabled . | . . . . . . . . . . . . . . . Actions | -11 -10 -10 -9 -9 -8 -7 -6 -5 -5 -5 -5 -4 -4 -4 --------- Run | Yrd Mat Min Mat Min Mat Fac Fac Fac Upp Upp War Pro Fac Upp Total 6933 | 56 47 537 604 648 364 412 644 1221 363 574 302 514 442 205 Wait 812 | . 3 28 23 29 7 60 210 419 1 1 1 1 29 . Move 5570 | 48 41 490 523 583 335 326 411 682 345 549 227 468 338 204 Hop . | . . . . . . . . . . . . . . . Pick Up 46 | 2 . 5 7 4 4 3 2 13 . 2 . 2 2 . Fast Attach 38 | 6 1 . 3 . 1 2 . 12 1 4 . 2 5 1 Attach 34 | . . . 2 1 4 2 2 11 1 3 . 1 7 . Detach 7 | . . . 1 . . . . 3 . . . 1 2 . Swap 39 | . . 2 5 4 3 4 4 7 . 1 . 5 4 . Drop 45 | . . . 5 3 4 6 3 14 . 1 . 6 3 . Fire 257 | . 2 10 35 22 6 9 12 54 15 13 6 28 45 . Melee 7 | . . . . . . . . . . . . . 7 . Ram . | . . . . . . . . . . . . . . . Kick . | . . . . . . . . . . . . . . . Crush 7 | . . 2 . 2 . . . 3 . . . . . . Escape Stasis . | . . . . . . . . . . . . . . . Rewire 71 | . . . . . . . . 3 . . 68 . . . Trap . | . . . . . . . . . . . . . . . Miscellaneous . | . . . . . . . . . . . . . . . Route ------- -11/Scrapyard -10/Materials -10/Mines (discovered 2 exits: *Mat x2) -9/Materials (discovered 3 exits: *Mat / *Min x2) -9/Mines (discovered 2 exits: *Mat x2) -8/Materials (discovered 3 exits: *Fac / *Sto x2) -7/Factory (discovered 2 exits: *Fac / *Low) -6/Factory (discovered 2 exits: *Fac x2) -5/Factory -5/Upper Caves -5/Upper Caves (discovered 2 exits: *Fac / [*War]) -5/Warlord -4/Proximity Caves -4/Factory -4/Upper Caves History --------- Turn | Location | Event 25 | -11/Scrapyard | Discovered new exit (range 15) 83 | -11/Scrapyard | Entered Materials 140 | -10/Materials | Discovered new exit (range 8) 160 | -10/Materials | Entered Mines 308 | -10/Mines | Build established: Mutant 344 | -10/Mines | Discovered new exit (range 16) 773 | -10/Mines | Learned 4 Materials zone layouts 940 | -10/Mines | Escorted by a lone wolf Derelict 1003 | -10/Mines | Discovered new exit (range 6) 1012 | -10/Mines | Entered Materials 1012 | -9/Materials | Accompanied by 1 ally 1012 | -9/Materials | Evolved 2 slots: Utility x1, Weapon x1 1475 | -9/Materials | Build established: Tank 1784 | -9/Materials | Discovered new exit (range 5) 1859 | -9/Materials | Identified exit to Mines 1956 | -9/Materials | Entered Mines 1963 | -9/Mines | Received a Rocket Launcher from a helpful Derelict 1966 | -9/Mines | Learned Materials interactive machine intel 2368 | -9/Mines | Discovered new exit (range 10) 2487 | -9/Mines | Build established: Scavenger-Tank 2508 | -9/Mines | Found a hidden stash of uninstalled traps 2823 | -9/Mines | Discovered new exit (range 10) 3001 | -9/Mines | Entered Materials 3001 | -8/Materials | Evolved 2 slots: Propulsion x1, Weapon x1 3002 | -8/Materials | Loaded intel: 19 interactive machine locations 3333 | -8/Materials | Discovered new exit (range 15) 3431 | -8/Materials | Met 7R-MNS 3476 | -8/Materials | Discovered new exit (range 11) 3566 | -8/Materials | Identified exit to Storage 3614 | -8/Materials | Entered Factory 3614 | -7/Factory | Evolved 2 slots: Utility x2 3615 | -7/Factory | Caught up to 7R-MNS 3898 | -7/Factory | Build established: Scavenger-Skirmisher 4035 | -7/Factory | Discovered new exit (range 6) 4046 | -7/Factory | Identified exit to Lower Caves 4111 | -7/Factory | Discovered new exit (range 14) 4126 | -7/Factory | Identified exit to Factory 4129 | -7/Factory | Entered another Factory area 4129 | -6/Factory | Evolved 2 slots: Propulsion x1, Utility x1 4130 | -6/Factory | Caught up to 7R-MNS 4580 | -6/Factory | Discovered new exit (range 13) 4595 | -6/Factory | Identified exit to Factory 4700 | -6/Factory | Spotted B-75 Beast 4866 | -6/Factory | Discovered exit to Factory (range 12) 4885 | -6/Factory | Entered another Factory area 4885 | -5/Factory | Evolved 2 slots: Utility x1, Weapon x1 4886 | -5/Factory | Caught up to 7R-MNS 5218 | -5/Factory | Discovered new exit (range 16) 5346 | -5/Factory | Found Prototype Device 5346 | -5/Factory | Identified Active Sensor Suite 5777 | -5/Factory | Lost 4 parts (1p3w) 5819 | -5/Factory | Lost 3 parts (2n1u) 6053 | -5/Factory | Build established: Scavenger-Gunner 6306 | -5/Factory | 7R-MNS lamented failing the tripod run 6321 | -5/Factory | Found Prototype Protection 6353 | -5/Factory | Found Corrupted Prototype Device 6353 | -5/Factory | Identified Multitargeting Array 6354 | -5/Factory | System corruption reached 10% 6518 | -5/Factory | Entered Upper Caves 6526 | -5/Upper Caves | Learned Factory security intel 7035 | -5/Upper Caves | Destroyed 7 combat bots 7077 | -5/Upper Caves | Discovered new exit (range 13) 7095 | -5/Upper Caves | Entered another Upper Caves area 7096 | -5/Upper Caves | Encountered a Warlord checkpoint 7168 | -5/Upper Caves | Discovered new exit (range 8) 7235 | -5/Upper Caves | Found DCF Scrap (14 items) 7411 | -5/Upper Caves | Spotted B-75 Beast 7450 | -5/Upper Caves | Attracted the attention of an 0b10 checkpoint 7680 | -5/Upper Caves | Lost 3 parts (1n2w) 7916 | -5/Upper Caves | Discovered new exit (range 10) 7978 | -5/Upper Caves | Entered Warlord 8053 | -5/Warlord | System corruption cleaned by Quarantine Array 8266 | -5/Warlord | Met Warlord 8291 | -5/Warlord | Warlord's base attacked by MAIN.C 8425 | -5/Warlord | Discovered new exit (range 9) 8439 | -5/Warlord | Entered Proximity Caves 8439 | -4/Proximity Caves | Accompanied by 1 ally 8465 | -4/Proximity Caves | Lost 4 allies 8509 | -4/Proximity Caves | Spotted B-86 Titan 8772 | -4/Proximity Caves | Destroyed B-86 Titan 8855 | -4/Proximity Caves | Attracted the attention of an 0b10 checkpoint 9140 | -4/Proximity Caves | Learned 8 Research zone layouts 9207 | -4/Proximity Caves | Discovered new exit (range 15) 9255 | -4/Proximity Caves | Learned location of Testing (-3) 9292 | -4/Proximity Caves | Entered Factory 9292 | -4/Factory | Accompanied by 1 ally 9292 | -4/Factory | Evolved 2 slots: Utility x2 9742 | -4/Factory | Discovered new exit (range 5) 9751 | -4/Factory | Identified exit to Upper Caves 9907 | -4/Factory | Identified Centrium Heavy Armor Plating 9936 | -4/Factory | Lost 9 parts (1p2n2u4w) 9974 | -4/Factory | Core integrity fell below 50% 9994 | -4/Factory | Core integrity fell below 20% 9999 | -4/Factory | System corruption reached 10% 10014 | -4/Factory | Entered Upper Caves 10023 | -4/Upper Caves | Lost 13 parts (1p2n7u3w) 10028 | -4/Upper Caves | Learned 12 Research zone layouts 10059 | -4/Upper Caves | Spotted B-86 Titan 10118 | -4/Upper Caves | Destroyed by S-27 Virus with Autogun Last Messages --------------- 10028_ Acquired derelict log, extracted data. Data stored: Research zone layouts (x12). 10050_ Searching scrap... 10050_ Found Seismic Detector. 10050_ Found Point Defense Array. 10050_ Found 63 Matter. 10052_ Acquired Point Defense Array. 10058_ %S